bitfinex-derivatives/quotes_ETHF0:USTF0_20250411
["timestamp","ask_amount","ask_price","bid_price","bid_amount"]
[1744358788191,7.91546539,1564.2,1561.1,3.2078]
[1744358788192,0.11780573,1563.5,1563.2,1.83964]
[1744358788386,4.614,1564.1,1563.4,3.2078]
[1744358788581,3.2078,1564.8,1564.0,1.81369]
[1744358788780,3.2078,1564.2,1563.6,3.2078]
[1744358788987,0.0034054,1563.6,1563.5,4.5701]
[1744358789187,0.0034054,1563.6,1562.6,97.721]
[1744358789188,0.0034054,1563.6,1563.4,3.2078]
[1744358789386,0.0034054,1563.6,1563.4,8.2078]
[1744358789590,3.21741477,1563.9,1563.5,4.5666946]
[1744358789591,3.2078,1563.8,1563.5,4.5666946]
[1744358790095,3.2078,1563.6,1563.2,3.2078]
[1744358790297,3.2078,1563.8,1563.5,0.00961477]
[1744358790695,0.00961477,1563.9,1563.6,3.2078]
[1744358790995,0.00961477,1563.9,1563.8,3.2078]
[1744358790996,4.77e-06,1563.9,1563.8,3.2078]
[1744358791186,4.77e-06,1563.9,1563.6,3.2078]
[1744358791587,3.20780477,1563.9,1563.7,40.8]
[1744358792384,4.77e-06,1563.9,1563.7,44.0078]
[1744358792898,4.77e-06,1563.9,1563.8,3.2078]
[1744358793192,4.77e-06,1563.9,1563.8,4.8443]
[1744358793392,4.77e-06,1563.9,1563.7,40.8]
[1744358793590,4.48747,1563.8,1563.5,0.00961477]
[1744358793790,3.2078,1563.7,1563.5,0.00961477]
[1744358794192,4.5773,1563.6,1563.5,4.77e-06]
[1744358794389,5.85714,1563.6,1563.5,4.77e-06]
[1744358794594,3.2078,1563.4,1562.4,4.8443]
[1744358794896,3.2078,1563.4,1561.4,97.65]
[1744358794897,3.2078,1562.6,1561.9,3.2078]
[1744358795090,3.2078,1562.6,1561.0,14.1816]
[1744358795091,3.2078,1562.4,1562.0,40.8]
[1744358795293,3.2078,1562.2,1561.3,9.1153]
[1744358795497,3.2078,1562.0,1561.3,9.1153]
[1744358795702,0.00961477,1561.9,1561.6,0.00961]
[1744358795904,3.2078,1561.8,1561.6,0.00961]
[1744358796601,0.65041477,1561.9,1561.6,0.00961]
[1744358797003,3.2078,1561.8,1561.6,0.00961]
[1744358797805,0.6408,1561.7,1561.6,0.00961]
[1744358798110,0.6408,1561.7,1560.8,3.2078]
[1744358798403,3.2078,1561.2,1561.0,4.8477]
[1744358798706,3.2078,1561.2,1560.7,3.2078]
[1744358799006,3.2078,1561.5,1560.6,4.6426]
[1744358799203,3.21741477,1561.1,1560.6,7.8504]
[1744358799404,3.2078,1560.9,1560.6,4.6426]
[1744358799604,3.2078,1560.7,1560.0,4.49051]
[1744358799906,3.2078,1560.7,1559.9,5.09034835]
[1744358799907,3.84940001,1561.0,1560.4,3.2078]
[1744358800104,3.2078,1560.8,1560.2,4.6426]
[1744358800305,3.2078,1560.6,1560.2,7.8504]
[1744358800506,3.2078,1560.7,1560.2,7.8504]
[1744358800708,3.2078,1560.5,1560.0,3.2078]
[1744358800907,4.6658,1560.6,1560.0,3.2078]
[1744358801107,4.6658,1560.6,1559.3,97.644]
[1744358801108,3.2078,1560.3,1560.1,4.6426]
[1744358801405,0.00961477,1560.5,1560.2,3.2078]
[1744358802011,0.00961477,1560.5,1559.5,4.6426]
[1744358802012,3.21741477,1560.5,1560.0,3.2078]
[1744358802213,3.21741477,1560.5,1560.1,40.8]
[1744358802509,3.21741477,1560.5,1559.8,4.49072]
[1744358802510,3.2078,1560.3,1559.6,3.2078]
[1744358802812,3.2078,1560.0,1559.7,40.8]
[1744358803310,3.2078,1559.8,1559.1,8.42509]
[1744358803502,3.2078,1559.8,1559.3,3.2078]
[1744358803708,3.2078,1559.8,1559.2,4.6164]
[1744358803909,4.71741477,1559.7,1559.3,40.8]
[1744358804109,3.2078,1559.6,1559.3,40.8]
[1744358804522,0.00961477,1559.7,1559.3,40.8]
[1744358804711,0.00961477,1559.7,1559.5,1.28312]
[1744358805016,0.00961477,1559.7,1559.4,4.6164]
[1744358805220,0.00961477,1559.7,1559.6,1.28312]
[1744358805611,3.2078,1560.1,1559.7,1.28297]
[1744358805811,3.2078,1560.1,1559.7,4.5729]
[1744358806010,1.28296,1559.8,1559.3,40.8]
[1744358806210,3.2078,1559.7,1559.3,40.8]
[1744358806419,7.8144,1559.7,1559.3,40.8]
[1744358806610,1.28316,1559.6,1559.3,40.8]
[1744358806807,3.2078,1559.5,1559.3,40.80961477]
[1744358807619,0.64160001,1559.4,1559.3,0.00961477]
[1744358807927,5.24820001,1559.4,1559.3,0.00961477]
[1744358808122,0.64160001,1559.4,1559.3,0.00961477]
[1744358808416,3.2078,1559.5,1559.3,0.00961477]
[1744358808622,97.74761477,1559.7,1559.3,0.00961477]
[1744358808821,0.00961477,1559.7,1559.4,1.28328]
[1744358809119,3.2078,1559.6,1559.3,0.00961477]
[1744358809323,1.29266477,1559.7,1559.3,0.00961477]
[1744358809324,4.77141477,1559.7,1559.3,0.00961477]
[1744358809526,3.2078,1559.5,1559.3,1.29295477]
[1744358810024,7.97921477,1559.7,1559.3,4.50076477]
[1744358810322,7.97921477,1559.7,1559.3,1.29296477]
[1744358810522,0.00961477,1559.7,1559.5,4.49097]
[1744358810718,0.00961477,1559.7,1559.5,3.2078]
[1744358810918,0.00961477,1559.7,1559.6,1.28312]
[1744358811118,0.00961477,1559.7,1559.5,1.28316]
[1744358811318,0.00961477,1559.7,1559.5,4.9991]
[1744358811518,0.00961477,1559.7,1559.5,6.2823]
[1744358811726,0.00961477,1559.7,1559.5,4.9991]
[1744358812224,0.00961477,1559.7,1559.6,3.2078]
[1744358812422,3.2078,1560.5,1560.0,1.28279]
[1744358812625,3.2078,1560.1,1559.6,3.2078]
[1744358812827,1.28291,1559.9,1559.6,3.2078]
[1744358813124,1.28305,1559.7,1559.2,4.49121]
[1744358813323,3.2078,1559.7,1559.2,3.2078]
[1744358813518,4.6074,1559.6,1559.1,6.2826]
[1744358813721,0.00961477,1559.6,1559.3,40.82846343]
[1744358813927,3.2078,1561.3,1560.2,3.20655]
[1744358814224,3.2078,1561.3,1560.8,3.2078]
[1744358814423,3.2078,1561.1,1560.1,3.2078]
[1744358814617,7.954,1561.2,1560.6,0.01884866]
[1744358814823,3.2078,1561.0,1560.6,0.01884866]
[1744358815025,3.2078,1561.0,1560.7,1.28221]
[1744358815224,0.00961477,1561.0,1560.9,3.2078]
[1744358815427,3.2078,1561.7,1561.1,1.28181]
[1744358815632,1.28177,1561.3,1561.1,3.2078]
[1744358815828,4.48952,1561.3,1561.2,40.8]
[1744358816135,1.28214,1560.8,1560.3,1.2825]
[1744358816329,3.2078,1561.1,1560.3,3.2078]
[1744358816536,3.2078,1561.3,1560.6,44.0078]
[1744358816727,4.48953,1561.3,1560.9,3.2078]
[1744358816924,4.49936477,1561.1,1560.7,3.2078]
[1744358817130,3.2078,1560.9,1560.6,40.8]
[1744358817436,1.2823,1560.6,1560.5,0.00961477]
[1744358817626,3.2078,1560.7,1560.5,0.00961477]
[1744358817930,6.5542,1560.6,1560.5,0.00961477]
[1744358818121,1.2826,1560.3,1559.9,9.1921449]
[1744358818320,3.2078,1560.1,1559.9,9.1921449]
[1744358818522,3.84940001,1560.7,1559.9,12.3999449]
[1744358818833,3.2078,1560.9,1560.5,1.28234]
[1744358819133,3.2078,1560.7,1560.0,45.5077]
[1744358819330,3.2078,1560.7,1560.5,0.00961477]
[1744358819537,7.84851477,1560.9,1560.5,0.00961477]
[1744358819737,0.00961477,1560.9,1560.5,0.00961477]
[1744358820030,3.21741477,1560.9,1560.5,0.00961477]
[1744358820221,3.2078,1560.7,1560.5,0.00961477]
[1744358820834,7.8841,1560.7,1560.5,0.00961477]
[1744358821033,4.6763,1560.7,1560.5,0.00961477]
[1744358821225,3.21741477,1560.9,1560.5,0.00961477]
[1744358821420,3.21741477,1560.9,1560.5,1.29198477]
[1744358821825,1.2823,1560.6,1560.5,0.00961477]
[1744358822021,1.2823,1560.6,1559.6,3.2078]
[1744358822022,97.763,1560.6,1559.6,3.2078]
[1744358822222,3.2078,1560.0,1559.6,8.0613]
[1744358822422,1.28287,1559.9,1559.6,45.6535]
[1744358822634,3.2078,1559.8,1559.6,45.6535]
[1744358822828,3.2078,1559.8,1559.6,40.8]
[1744358823528,1.28312,1559.6,1559.5,0.00961477]
[1744358823838,4.49092,1559.6,1559.5,0.00961477]
[1744358824034,4.49092,1559.6,1559.5,40.80961477]
[1744358824428,3.2078,1559.6,1559.5,40.80961477]
[1744358824640,4.49092,1559.6,1559.5,40.80961477]
[1744358824832,9.37252,1559.6,1559.5,40.80961477]
[1744358825330,8.0894,1559.6,1559.5,40.80961477]
[1744358825833,1.28328,1559.4,1559.3,9.1921449]
[1744358826036,4.49108,1559.4,1559.3,9.1921449]
[1744358826239,9.49108,1559.4,1559.3,9.1921449]
[1744358826937,1.28353,1559.1,1559.0,40.8]
[1744358827235,3.2078,1559.1,1559.0,40.8]
[1744358827739,4.49133,1559.1,1559.0,40.8]
[1744358828034,1.28371,1558.9,1558.4,1.28405]
[1744358828234,4.9236,1558.8,1558.6,1.28393]
[1744358828434,0.64160001,1559.2,1558.8,1.28373]
[1744358828435,3.2078,1559.1,1558.8,1.28373]
[1744358828733,8.1314,1559.1,1558.7,42.08379]
[1744358828939,8.1314,1559.1,1558.8,3.2078]
[1744358829134,8.14101477,1559.1,1558.7,42.08383]
[1744358829435,8.14101477,1559.1,1558.7,42.08386]
[1744358829833,8.14101477,1559.1,1558.7,40.8]
[1744358830034,0.00961477,1559.1,1559.0,1.28361]
[1744358830337,3.2078,1559.4,1559.0,8.2078]
[1744358830640,3.2078,1559.4,1558.9,0.80573318]
[1744358830836,3.2078,1559.2,1558.9,1.28367]
[1744358831032,3.2078,1559.4,1559.1,1.28347]
[1744358831239,9.2825,1559.7,1559.3,1.28336]
[1744358831431,0.00961477,1559.4,1559.1,0.00961477]
[1744358831741,3.2078,1559.9,1559.2,3.2078]
[1744358831926,3.2078,1559.9,1559.2,4.01353318]
[1744358832236,3.2078,1559.3,1559.2,0.80573318]
[1744358832432,3.2078,1559.3,1559.1,0.00961477]
[1744358833039,0.00961477,1559.4,1559.1,8.21741477]
[1744358833339,0.00961477,1559.4,1559.2,4.9111]
[1744358833826,0.00961477,1559.4,1559.2,9.9111]
[1744358834027,0.00961477,1559.4,1559.3,4.49117]
[1744358834433,101.01045,1560.3,1559.8,1.28291]
[1744358834434,101.0118,1560.3,1559.8,1.28291]
[1744358834639,3.84940001,1560.3,1559.9,1.28287]
[1744358834831,1.28274,1560.1,1559.7,4.49078]
[1744358835041,1.28287,1559.9,1559.8,40.8]
[1744358835239,4.49067,1559.9,1559.8,40.8]
[1744358835435,9.49067,1559.9,1559.8,40.8]
[1744358835642,1.28287,1559.9,1559.8,40.8]
[1744358835836,0.00961477,1560.0,1559.8,40.8]
[1744358836038,1.29245477,1560.0,1559.8,40.8]
[1744358836531,1.28295,1559.8,1559.7,0.00961477]
[1744358836731,3.2078,1559.9,1559.7,0.00961477]
[1744358837039,1.28295,1559.8,1559.7,0.00961477]
[1744358837245,5.94575,1559.8,1559.7,0.00961477]
[1744358837642,1.28322,1559.5,1559.3,40.8]
[1744358837844,1.28324,1559.5,1559.3,40.8]
[1744358838035,3.2078,1559.4,1559.3,40.8]
[1744358838241,4.49108,1559.4,1559.3,40.8]
[1744358838440,3.2078,1559.4,1559.3,40.8]
[1744358838849,3.2078,1559.4,1559.2,0.00961477]
[1744358839044,4.49098,1559.6,1559.2,1.29304477]
[1744358839246,1.28321,1559.5,1559.2,0.00961477]
[1744358839548,1.28321,1559.5,1559.3,40.8]
[1744358839549,5.0249,1559.5,1559.3,40.8]
[1744358840048,3.21741477,1560.0,1559.3,44.0078]
[1744358840245,5.0249,1559.9,1559.6,1.2831]
[1744358840541,4.50027477,1560.0,1559.4,4.8482]
[1744358840542,0.00961477,1560.0,1559.9,1.28287]
[1744358840755,0.00961477,1560.0,1559.5,4.01342168]
[1744358841042,3.21741477,1560.0,1559.5,3.2078]
[1744358841243,1.28304,1559.7,1559.6,40.8]
[1744358841546,3.2078,1559.7,1559.2,0.00961477]
[1744358841744,1.28337,1559.3,1559.2,0.00961477]
[1744358841946,5.2295,1559.6,1559.2,40.80961477]
[1744358842142,6.51268,1559.6,1559.2,66.38102434]
[1744358842342,1.2832,1559.5,1559.2,71.52932434]
[1744358842642,3.21741477,1560.0,1559.3,3.2078]
[1744358842951,3.2078,1559.4,1559.2,70.24592434]
[1744358843146,1.28337,1559.3,1559.2,65.09762434]
[1744358843648,6.51287,1559.3,1559.2,24.29762434]
[1744358843841,11.51287,1559.3,1559.2,24.29762434]
[1744358845149,6.51287,1559.3,1559.2,24.29762434]
[1744358845344,3.2078,1559.4,1559.2,1.29303477]
[1744358845546,1.28337,1559.3,1559.2,0.00961477]
[1744358845748,5.0785,1559.3,1559.2,0.00961477]
[1744358846050,3.2078,1559.6,1559.2,0.00961477]
[1744358846346,1.28337,1559.3,1559.2,0.00961477]
[1744358847251,3.2078,1559.4,1559.2,0.00961477]
[1744358847447,9.56946,1559.6,1559.2,3.21741477]
[1744358847647,4.49117,1559.3,1559.2,0.00961477]
[1744358848353,3.2078,1559.5,1559.2,0.00961477]
[1744358848544,4.49117,1559.3,1559.2,0.00961477]
[1744358849551,3.2078,1559.3,1559.2,0.00961477]
[1744358849752,5.1943,1559.5,1559.2,5.00961477]
[1744358849957,6.47752,1559.5,1559.2,0.00961477]
[1744358850248,6.47756,1559.5,1559.2,5.27321477]
[1744358850454,1.28337,1559.3,1559.2,0.00961477]
[1744358851154,6.33627,1559.3,1559.2,0.00961477]
[1744358851342,11.33627,1559.3,1559.2,0.00961477]
[1744358852150,11.33627,1559.3,1559.2,4.77e-06]
[1744358852860,11.97787001,1559.3,1559.2,4.77e-06]
[1744358853566,12.09585763,1559.3,1559.2,4.77e-06]
[1744358853865,16.41815763,1559.3,1559.2,4.77e-06]
[1744358854458,16.30017001,1559.3,1559.2,4.77e-06]
[1744358854950,3.20863,1559.2,1558.7,15.09586467]
[1744358855153,3.2078,1558.8,1558.7,15.09586467]
[1744358855365,4.49158,1558.8,1558.7,15.09586467]
[1744358855563,3.2078,1558.8,1558.7,20.09586467]
[1744358855861,0.00961477,1558.9,1558.7,5.0]
[1744358856162,0.00961477,1558.9,1558.8,1.28378]
[1744358856553,0.00961477,1558.9,1558.8,6.28378]
[1744358857454,0.64160001,1559.5,1559.4,1.28328]
[1744358857762,22.50090684,1560.3,1559.2,1.28337]
[1744358857763,3.2078,1559.7,1559.2,1.28337]
[1744358857967,4.49063,1560.0,1559.2,6.4164]
[1744358858162,1.28287,1559.9,1559.6,1.28309]
[1744358858466,4.49064,1560.0,1559.6,6.3853]
[1744358858765,0.00961477,1559.9,1559.6,5.11181477]
[1744358859061,0.00961477,1559.9,1559.7,3.2078]
[1744358859666,1.29251477,1559.9,1559.7,3.2078]
[1744358859862,5.28841477,1559.9,1559.7,3.2078]
[1744358860367,5.28841477,1559.9,1559.7,8.2538]
[1744358860665,5.28841477,1559.9,1559.6,1.29270477]
[1744358860868,6.57131477,1559.9,1559.6,0.00961477]
[1744358861258,3.2078,1559.8,1559.6,0.00961477]
[1744358861967,1.28304,1559.7,1559.6,0.00961477]
[1744358862366,6.56184,1559.7,1559.6,0.00961477]
[1744358862969,3.2078,1559.8,1559.6,0.00961477]
[1744358863268,0.00961477,1559.9,1559.6,1.29267477]
[1744358863470,1.28304,1559.7,1559.6,0.00961477]
[1744358864369,6.51414,1559.7,1559.6,0.00961477]
[1744358864873,3.2078,1559.8,1559.6,0.00961477]
[1744358865171,4.49076,1559.8,1559.6,0.00961477]
[1744358865366,4.49076,1559.8,1559.6,5.34231477]
[1744358865567,3.2078,1559.8,1559.6,5.34231477]
[1744358865761,1.28304,1559.7,1559.6,5.34231477]
[1744358865959,0.00961477,1559.9,1559.6,5.34231477]
[1744358866269,0.00961477,1559.9,1559.7,1.28301]
[1744358866466,0.00961477,1559.9,1559.8,4.9254]
[1744358866666,1.29248477,1559.9,1559.8,4.9254]
[1744358866861,0.00961477,1559.9,1559.8,4.9254]
[1744358867168,1.29248477,1559.9,1559.8,4.9254]
[1744358867478,1.29248477,1559.9,1559.8,11.20835]
[1744358867479,0.00961477,1559.9,1559.8,11.20835]
[1744358867859,0.00961477,1559.9,1559.8,9.9254]
[1744358868974,1.29248477,1559.9,1559.8,4.9254]
[1744358869274,1.28301,1559.8,1559.6,0.00961477]
[1744358869462,1.29254477,1559.9,1559.6,0.00961477]
[1744358869666,3.2078,1559.8,1559.6,0.00961477]
[1744358869970,0.00961477,1559.9,1559.8,1.28295]
[1744358870170,0.00961477,1559.9,1559.7,5.7947]
[1744358870370,0.00961477,1559.9,1559.7,7.07771]
[1744358870672,1.29248477,1559.9,1559.7,5.7947]
[1744358870868,0.00961477,1559.9,1559.7,7.07773]
[1744358871068,1.29249477,1559.9,1559.7,5.7947]
[1744358871268,0.00961477,1559.9,1559.7,7.07772]
[1744358871973,0.00961477,1559.9,1559.8,4.49075]
[1744358872373,0.00961477,1559.9,1559.8,9.49075]
[1744358872574,0.00961477,1559.9,1559.7,5.7947]
[1744358872775,0.00961477,1559.9,1559.8,1.28295]
[1744358873172,1.28295,1559.8,1559.7,5.7947]
[1744358873467,1.28304,1559.7,1559.6,0.00961477]
[1744358875580,7.06914,1559.7,1559.6,0.00961477]
[1744358876482,10.7861,1559.7,1559.1,1.28349]
[1744358876780,1.28331,1559.4,1559.2,40.8]
[1744358876980,1.28331,1559.4,1559.2,46.7339]
[1744358877676,1.28337,1559.3,1559.2,40.8]
[1744358878474,3.2078,1559.4,1559.2,40.8]
[1744358878674,1.28283,1560.0,1559.3,6.41617]
[1744358878869,4.50033477,1559.9,1559.5,4.49095]
[1744358879169,8.84301477,1559.9,1559.3,8.9885]
[1744358879368,3.2078,1559.7,1559.3,8.9885]
[1744358879769,1.28345,1559.2,1559.1,0.00961477]
[1744358880378,6.90905,1559.2,1559.1,0.00961477]
[1744358880570,11.90905,1559.2,1559.1,0.00961477]
[1744358880973,12.55065001,1559.2,1559.1,4.77e-06]
[1744358881782,12.66864313,1559.2,1559.1,4.77e-06]
[1744358881982,12.66864313,1559.2,1558.3,15.09586467]
[1744358881983,1.28411,1558.4,1558.3,13.56743467]
[1744358882179,4.49191,1558.4,1558.3,13.56743467]
[1744358882379,9.49191,1558.4,1558.3,13.56743467]
[1744358882674,10.13431001,1558.4,1558.3,4.35426337]
[1744358882879,10.13431001,1558.4,1558.3,3.05871337]
[1744358883480,15.86811001,1558.4,1558.3,0.35610337]
[1744358883985,15.86811001,1558.4,1558.3,3.37e-06]
[1744358884184,1.28427,1558.2,1558.1,22.76361445]
[1744358884381,3.21107,1558.1,1557.4,5.9202]
[1744358884687,1.28479,1557.6,1557.4,5.9202]
[1744358884885,3.21118,1558.0,1557.1,19.85578018]
[1744358884886,3.2078,1557.5,1557.1,19.85578018]
[1744358885080,3.21741477,1557.7,1557.3,3.2078]
[1744358885280,4.48909398,1557.7,1557.3,3.2078]
[1744358885483,3.20436398,1557.7,1557.1,23.06358018]
[1744358885688,3.20436398,1557.7,1557.1,23.05052939]
[1744358885987,4.48907398,1557.7,1557.3,3.2078]
[1744358886188,3.19131319,1557.7,1557.3,3.2078]
[1744358886384,0.00961477,1557.7,1557.4,1.28493]
[1744358886582,0.00961477,1557.7,1557.3,3.2078]
[1744358886782,0.00961477,1557.7,1557.6,3.2078]
[1744358886981,0.00961477,1557.7,1557.6,4.49257]
[1744358887186,0.00961477,1557.7,1557.6,9.49257]
[1744358887380,3.2078,1558.2,1557.9,1.2845]
[1744358887689,10.82587001,1558.5,1558.1,4.49215]
[1744358887890,6.97567,1558.5,1558.1,3.2078]
[1744358888083,97.851,1558.6,1558.1,4.49215]
[1744358888285,1.28401,1558.6,1558.3,3.2078]
[1744358888481,12.50187649,1558.7,1558.5,3.2078]
[1744358888685,12.50187649,1558.7,1558.6,46.6184]
[1744358888879,20.70967649,1558.7,1557.9,3.2078]
[1744358889086,1.28448,1558.0,1557.8,5.8184]
[1744358889285,3.2078,1558.2,1557.8,9.0262]
[1744358889483,5.6916,1558.3,1557.8,9.0262]
[1744358889683,1.28447,1558.0,1557.8,5.8184]
[1744358889889,1.2843,1558.2,1557.9,40.8]
[1744358890089,3.2078,1558.3,1558.0,6.83652]
[1744358890288,5.8798,1558.5,1558.1,3.2078]
[1744358890598,5.8798,1558.5,1558.0,5.5521]
[1744358890599,1.28435,1558.1,1558.0,5.5521]
[1744358890892,1.28434,1558.2,1558.0,5.5521]
[1744358891081,5.8798,1558.5,1558.0,5.5521]
[1744358891394,1.28421,1558.3,1558.0,5.5521]
[1744358891691,1.28428,1558.2,1558.0,5.5521]
[1744358891888,1.28435,1558.1,1558.0,5.5521]
[1744358892088,5.8798,1558.5,1558.0,5.5521]
[1744358892287,3.2078,1558.4,1558.1,4.49213]
[1744358892492,1.28414,1558.4,1558.2,3.2078]
[1744358892687,1.28405,1558.5,1558.2,3.2078]
[1744358892895,4.49177,1558.6,1558.3,5.5521]
[1744358893094,3.2078,1558.4,1557.8,3.2078]
[1744358893291,1.28435,1558.1,1557.9,6.0169]
[1744358893593,1.28424,1558.3,1557.9,7.30139]
[1744358893893,3.2078,1558.4,1557.9,6.0169]
[1744358894092,1.28432,1558.2,1557.9,6.0169]
[1744358894290,1.28423,1558.3,1557.9,6.0169]
[1744358894495,3.2078,1558.5,1558.1,3.2078]
[1744358894697,3.85020001,1558.7,1558.2,6.0169]
[1744358894891,1.28414,1558.4,1558.2,6.0169]
[1744358895093,1.28419,1558.3,1558.2,6.0169]
[1744358895285,1.28441,1558.1,1557.9,3.2078]
[1744358895490,3.2078,1558.3,1558.0,6.0169]
[1744358895694,1.28435,1558.1,1558.0,6.0169]
[1744358896000,1.28423,1558.3,1558.0,7.30133]
[1744358896794,3.2078,1558.5,1558.0,6.0169]
[1744358896999,5.9319,1558.6,1558.2,1.28426]
[1744358897202,1.28425,1558.3,1558.0,10.50913]
[1744358897399,1.28416,1558.4,1558.0,10.50913]
[1744358897589,1.28416,1558.4,1558.0,9.2247]
[1744358897789,9.1397,1558.6,1558.0,10.50909]
[1744358898005,9.1397,1558.6,1558.0,9.2247]
[1744358898303,1.28398,1558.6,1558.4,3.2078]
[1744358898505,3.21741477,1558.8,1558.5,5.7518]
[1744358898803,1.28394,1558.6,1558.5,5.7518]
[1744358899102,6.41749,1558.7,1558.1,3.2078]
[1744358899401,1.28403,1558.5,1558.1,3.2078]
[1744358899606,1.28413,1558.4,1558.2,6.027]
[1744358900200,3.2078,1558.5,1558.0,3.2078]
[1744358900503,6.41831,1558.3,1557.7,40.8]
[1744358900698,9.13029,1558.2,1557.7,48.11167]
[1744358901006,1.28453,1557.9,1557.7,48.11167]
[1744358901205,3.2078,1558.1,1557.7,40.8]
[1744358901389,1.2846,1557.8,1557.7,40.8]
[1744358902001,1.28455,1557.9,1557.7,40.8]
[1744358902201,1.2846,1557.8,1557.7,46.827]
[1744358902401,4.49235,1557.9,1557.7,46.827]
[1744358902603,5.92921477,1558.0,1557.7,46.827]
[1744358902805,1.29411477,1558.0,1557.7,50.0348]
[1744358903004,0.00961477,1558.0,1557.8,1.28458]
[1744358903198,0.00961477,1558.0,1557.9,5.7439]
[1744358903396,1.29405477,1558.0,1557.9,5.7439]
[1744358903602,0.00961477,1558.0,1557.9,5.7439]
[1744358904001,1.2846,1557.8,1557.7,40.8]
[1744358904208,4.4924,1557.8,1557.7,41.60829136]
[1744358904607,4.4924,1557.8,1557.7,40.8]
[1744358905411,1.28495,1557.4,1557.0,3.2078]
[1744358905602,3.2078,1557.6,1557.3,6.02964921]
[1744358905806,1.28504,1557.3,1557.0,3.2078]
[1744358906099,6.0954,1557.5,1557.0,3.2078]
[1744358906100,1.28518,1557.1,1557.0,3.19474921]
[1744358906412,1.28518,1557.1,1557.0,43.99474921]
[1744358906601,1.28518,1557.1,1557.0,40.8]
[1744358907006,1.28554,1556.7,1556.5,3.2078]
[1744358907201,1.28559,1556.6,1556.5,3.2078]
[1744358907407,1.28559,1556.6,1556.3,8.97515151]
[1744358907602,1.28556,1556.7,1556.3,10.26099151]
[1744358907803,1.28559,1556.6,1556.3,10.26095151]
[1744358908109,1.28559,1556.6,1556.4,40.8]
[1744358909015,1.28556,1556.7,1556.5,5.7828]
[1744358909206,3.2078,1556.8,1556.5,5.7828]
[1744358909514,0.00961477,1557.2,1556.7,3.2078]
[1744358909811,0.00961477,1557.2,1556.5,5.7828]
[1744358909812,1.28538,1556.9,1556.8,5.7828]
[1744358911009,5.8553,1557.1,1556.8,5.7828]
[1744358911221,3.21741477,1557.2,1556.8,5.7828]
[1744358911514,0.00961477,1557.2,1557.1,4.49298]
[1744358911709,0.00961477,1557.2,1557.1,3.2078]
[1744358912015,1.29475477,1557.2,1557.0,5.8217]
[1744358912207,1.28518,1557.1,1557.0,5.8217]
[1744358913211,0.00961477,1557.2,1557.0,5.8217]
[1744358913715,0.00961477,1557.2,1557.1,4.02298241]
[1744358913916,0.00961477,1557.2,1557.1,5.30816241]
[1744358914120,0.00961477,1557.2,1557.1,10.30816241]
[1744358914511,0.00961477,1557.2,1557.1,11.16903881]
[1744358914807,11.40763097,1558.2,1557.6,1.28469]
[1744358915012,1.28452,1557.9,1557.7,8.08424241]
[1744358915205,1.28446,1558.0,1557.8,3.2078]
[1744358915416,1.28446,1558.0,1557.9,5.9844]
[1744358915716,1.28446,1558.0,1557.9,6.79958241]
[1744358915915,1.28446,1558.0,1557.9,0.81518241]
[1744358916219,6.28446,1558.0,1557.9,2.41e-06]
[1744358916513,6.28446,1558.0,1557.8,0.00961477]
[1744358916514,1.28452,1557.9,1557.8,0.00961477]
[1744358916716,5.0,1558.0,1557.8,40.80961477]
[1744358916717,1.28449,1558.0,1557.8,40.80961477]
[1744358917016,1.29402477,1558.1,1557.9,3.2078]
[1744358917212,1.29401477,1558.1,1557.9,5.9844]
[1744358917413,0.00961477,1558.1,1558.0,2.14653029]
[1744358917613,0.00961477,1558.1,1558.0,8.49262079]
[1744358917817,1.28413,1558.4,1558.2,1.28426]
[1744358918016,1.28413,1558.4,1558.3,5.8168]
[1744358918219,3.2078,1558.6,1558.2,3.2078]
[1744358918518,3.2078,1558.6,1558.3,9.88639228]
[1744358918519,1.28394,1558.6,1558.3,9.88639228]
[1744358918718,6.41648,1559.2,1558.5,4.49177]
[1744358918918,1.2837,1558.9,1558.8,3.2078]
[1744358919320,1.28378,1558.8,1558.7,0.00961477]
[1744358919716,6.28378,1558.8,1558.7,0.00961477]
[1744358920723,7.07598,1558.8,1558.7,0.00961477]
[1744358920913,1.28374,1558.9,1558.7,0.00961477]
[1744358921220,1.28378,1558.8,1558.7,0.00961477]
[1744358921616,6.28378,1558.8,1558.7,0.00961477]
[1744358921923,12.07598,1558.8,1558.7,4.77e-06]
[1744358923121,7.07598,1558.8,1558.7,4.77e-06]
[1744358924023,12.07598,1558.8,1558.7,4.77e-06]
[1744358925523,1.28378,1558.8,1558.7,4.77e-06]
[1744358925720,12.47240242,1559.7,1559.6,1.28312]
[1744358925922,12.47240242,1559.7,1559.6,4.49092]
[1744358926226,1.28284,1560.0,1559.7,1.28303]
[1744358926424,1.28284,1560.0,1559.7,1.28302]
[1744358926625,9.3697,1560.1,1559.8,1.28294]
[1744358926825,16.96880439,1560.2,1559.8,4.49071]
[1744358927028,1.29232477,1560.1,1559.8,3.21741477]
[1744358927219,0.00961477,1560.1,1560.0,4.49059]
[1744358927415,15.04451438,1560.2,1560.1,1.28271]
[1744358927624,42.1222469,1560.4,1560.3,1.28254]
[1744358927826,43.4047069,1560.4,1560.3,3.2078]
[1744358928236,1.28279,1560.0,1559.9,3.2078]
[1744358928531,1.28279,1560.0,1559.8,0.00961477]
[1744358928828,1.28287,1559.9,1559.8,0.00961477]
[1744358929321,1.28287,1559.9,1559.8,40.80961477]
[1744358930728,6.17151477,1560.1,1559.8,40.80961477]
[1744358930729,7.45426477,1560.1,1559.8,40.80961477]
[1744358930925,0.00961477,1560.1,1559.9,8.9473]
[1744358931123,3.2078,1560.6,1559.9,8.9473]
[1744358931323,3.2078,1561.0,1560.4,3.2078]
[1744358931522,1.28218,1560.8,1560.4,4.49021]
[1744358931727,1.28222,1560.7,1560.5,5.7395]
[1744358931934,1.2823,1560.6,1560.5,5.7395]
[1744358932830,1.29187477,1560.7,1560.5,5.7395]
[1744358933027,0.00961477,1560.7,1560.5,5.7395]